fUSD/lending_fUSD_20240318
["ID","MTS","AMOUNT","RATE_DAILY","PERIOD"]
[319453533,1710781847060,-500.0,0.00021917,2]
[319453534,1710781847070,-500.0,0.00021917,2]
[319453535,1710781847080,-3406.59,0.00021917,2]
[319453536,1710781847089,-1648.21,0.00021917,2]
[319453537,1710781847101,-504.15090307,0.00021917,2]
[319453538,1710781847111,-1326.91,0.00021917,2]
[319453539,1710781847120,-500.0,0.00021917,2]
[319453540,1710781847129,-500.0,0.00021917,2]
[319453541,1710781847140,-500.0,0.00021917,2]
[319453542,1710781847149,-17107.84,0.00021917,2]
[319453543,1710781847160,-500.0,0.00021917,2]
[319453544,1710781847170,-501.9017392,0.00021917,2]
[319453545,1710781847180,-500.0,0.00021917,2]
[319453546,1710781847189,-786.85,0.00021917,2]
[319453547,1710781847199,-1865.09,0.00021917,2]
[319453548,1710781847209,-970.16,0.00021917,2]
[319453549,1710781847218,-500.53926869,0.00021917,2]
[319453550,1710781847228,-500.0,0.00021917,2]
[319453551,1710781847456,-500.0,0.00021917,2]
[319453552,1710781847468,-500.0,0.00021917,2]
[319453553,1710781847477,-502.00922021,0.00021917,2]
[319453554,1710781847487,-1542.26,0.00021917,2]
[319453555,1710781847497,-500.0,0.00021917,2]
[319453556,1710781847507,-912.86,0.00021917,2]
[319453557,1710781847516,-500.0,0.00021917,2]
[319453558,1710781847526,-1928.12,0.00021917,2]
[319453559,1710781847535,-542.96213707,0.00021917,2]
[319453560,1710781847545,-522.83,0.00021917,2]
[319453561,1710781847554,-500.0,0.00021917,2]
[319453562,1710781847564,-500.0,0.00021917,2]
[319453563,1710781847573,-500.0,0.00021917,2]
[319453564,1710781847583,-500.0,0.00021917,2]
[319453565,1710781847596,-1185.74,0.00021917,2]
[319453566,1710781847605,-500.0,0.00021917,2]
[319453567,1710781847614,-507.97824199,0.00021917,2]
[319453568,1710781847624,-1883.34,0.00021917,2]
[319453569,1710781847633,-500.0,0.00021917,2]
[319453570,1710781847643,-2678.24,0.00021917,2]
[319453571,1710781847652,-500.0,0.00021917,2]
[319453572,1710781847662,-1460.05,0.00021917,2]
[319453573,1710781847672,-500.0,0.00021917,2]
[319453574,1710781847682,-1825.63,0.00021917,2]
[319453575,1710781847691,-500.0,0.00021917,2]
[319453576,1710781847700,-500.0,0.00021917,2]
[319453577,1710781847711,-500.0,0.00021917,2]
[319453578,1710781847720,-1871.73,0.00021917,2]
[319453579,1710781847730,-500.0,0.00021917,2]
[319453580,1710781847739,-500.0,0.00021917,2]
[319453581,1710781847749,-3755.06,0.00021917,2]
[319453582,1710781847758,-500.0,0.00021917,2]
[319453583,1710781847767,-500.0,0.00021917,2]
[319453584,1710781847777,-500.0,0.00021917,2]
[319453585,1710781847786,-5459.06,0.00021917,2]
[319453586,1710781847796,-500.0,0.00021917,2]
[319453587,1710781847805,-3293.68,0.00021917,2]
[319453588,1710781847814,-985.81,0.00021917,2]
[319453589,1710781847824,-3621.54,0.00021917,2]
[319453590,1710781847833,-500.0,0.00021917,2]
[319453591,1710781847847,-531.89,0.00021917,2]
[319453592,1710781847856,-5923.71,0.00021917,2]
[319453593,1710781847865,-660.76,0.00021917,2]
[319453594,1710781847875,-3625.77,0.00021917,2]
[319453595,1710781847884,-500.0,0.00021917,2]
[319453596,1710781847893,-500.0,0.00021917,2]
[319453597,1710781847902,-500.10257732,0.00021917,2]
[319453598,1710781847912,-500.0,0.00021917,2]
[319453599,1710781847922,-1530.28,0.00021917,2]
[319453600,1710781847932,-500.0,0.00021917,2]
[319453601,1710781847941,-500.0,0.00021917,2]
[319453602,1710781847951,-500.0,0.00021917,2]
[319453603,1710781847960,-3110.8,0.00021917,2]
[319453604,1710781847969,-1890.4,0.00021917,2]
[319453605,1710781847979,-500.0,0.00021917,2]
[319453606,1710781847989,-500.0,0.00021917,2]
[319453607,1710781847998,-2463.05,0.00021917,2]
[319453608,1710781848007,-500.0,0.00021917,2]
[319453609,1710781848016,-827.82,0.00021917,2]
[319453610,1710781848026,-1417.99,0.00021917,2]
[319453611,1710781848036,-500.0,0.00021917,2]
[319453612,1710781848045,-500.0,0.00021917,2]
[319453613,1710781848055,-4066.12,0.00021917,2]
[319453614,1710781848065,-2172.59,0.00021917,2]
[319453615,1710781848074,-500.0,0.00021917,2]
[319453616,1710781848084,-3653.84,0.00021917,2]
[319453617,1710781848099,-7419.43,0.00021917,2]
[319453618,1710781848109,-500.0,0.00021917,2]
[319453619,1710781848120,-500.0,0.00021917,2]
[319453620,1710781848130,-500.0,0.00021917,2]
[319453621,1710781848141,-500.0,0.00021917,2]
[319453622,1710781848152,-500.36509554,0.00021917,2]
[319453623,1710781848163,-1877.92,0.00021917,2]
[319453624,1710781848174,-500.0,0.00021917,2]
[319453625,1710781848185,-500.0,0.00021917,2]
[319453626,1710781848195,-500.0,0.00021917,2]
[319453627,1710781848205,-500.0,0.00021917,2]
[319453628,1710781848215,-500.0,0.00021917,2]
[319453629,1710781848224,-1010.62,0.00021917,2]
[319453630,1710781848233,-69395.07,0.00021917,2]
[319453631,1710781848243,-500.0,0.00021917,2]
[319453632,1710781848253,-500.0,0.00021917,2]
[319453633,1710781848263,-1517.2,0.00021918,10]
[319453634,1710781848273,-250.0,0.00021918,2]
[319453635,1710781848282,-155.0,0.00021918,2]
[319453636,1710781848291,-10000.0,0.0002196,2]
[319453637,1710781848301,-800.0,0.00021973,2]
[319453638,1710781848311,-800.0,0.00021973,2]
[319453639,1710781848322,-1222.37703187,0.00021986,2]
[319453640,1710781848337,-5349.71648699,0.00021987,2]
[319453641,1710781848354,-246.03807694,0.00021987,2]
[319453642,1710781848363,-581.8,0.00021988,2]
[319453643,1710781848373,-500.0,0.00021988,2]
[319453644,1710781848383,-500.0,0.00021988,2]
[319453645,1710781848392,-500.0,0.00021988,2]
[319453646,1710781848401,-2702.95,0.00021988,2]
[319453647,1710781848411,-501.62093889,0.00021988,2]
[319453648,1710781848420,-500.0,0.00021988,2]
[319453649,1710781848429,-500.0,0.00021988,2]
[319453650,1710781848441,-1818.12,0.00021988,2]
[319453651,1710781848450,-500.0,0.00021988,2]
[319453652,1710781848459,-500.0,0.00021988,2]
[319453653,1710781848468,-500.0,0.00021988,2]
[319453654,1710781848477,-3721.75,0.00021988,2]
[319453655,1710781848486,-500.0,0.00021988,2]
[319453656,1710781848496,-500.0,0.00021988,2]
[319453657,1710781848505,-571.22,0.00021988,2]
[319453658,1710781848514,-500.0,0.00021988,2]
[319453659,1710781848523,-1311.83,0.00021988,2]
[319453660,1710781848532,-500.0,0.00021988,2]
[319453661,1710781848542,-500.0,0.00021988,2]
[319453662,1710781848551,-785.59,0.00021988,2]
[319453663,1710781848560,-500.0,0.00021988,2]
[319453664,1710781848570,-545.99,0.00021988,2]
[319453665,1710781848579,-500.0,0.00021988,2]
[319453666,1710781848588,-500.0,0.00021988,2]
[319453667,1710781848605,-500.0,0.00021988,2]
[319453668,1710781848615,-500.0,0.00021988,2]
[319453669,1710781848625,-500.0,0.00021988,2]
[319453670,1710781848634,-896.87,0.00021988,2]
[319453671,1710781848643,-500.0,0.00021988,2]
[319453672,1710781848653,-500.0,0.00021988,2]
[319453673,1710781848662,-500.0,0.00021988,2]
[319453674,1710781848672,-872.11,0.00021988,2]
[319453675,1710781848681,-500.0,0.00021988,2]
[319453676,1710781848690,-593.11,0.00021988,2]
[319453677,1710781848699,-152.04510795,0.00021988,2]
[319453678,1710781848709,-1111.28,0.00021988,2]
[319453679,1710781848717,-500.0,0.00021988,2]
[319453680,1710781848726,-500.0,0.00021988,2]
[319453681,1710781848736,-500.0,0.00021988,2]
[319453682,1710781848745,-500.0,0.00021988,2]
[319453683,1710781848754,-500.0,0.00021988,2]
[319453684,1710781848763,-500.0,0.00021988,2]
[319453685,1710781848772,-500.0,0.00021988,2]
[319453686,1710781848782,-500.0,0.00021988,2]
[319453687,1710781848791,-500.0,0.00021988,2]
[319453688,1710781848800,-624.51,0.00021988,2]
[319453689,1710781848809,-639.33,0.00021988,2]
[319453690,1710781848819,-500.0,0.00021988,2]
[319453691,1710781848827,-1148.58,0.00021988,2]
[319453692,1710781848836,-500.0,0.00021988,2]
[319453693,1710781848850,-500.0,0.00021988,2]
[319453694,1710781848859,-500.0,0.00021988,2]
[319453695,1710781848868,-500.0,0.00021988,2]
[319453696,1710781848877,-500.0,0.00021988,2]
[319453697,1710781848886,-500.0,0.00021988,2]
[319453698,1710781848895,-500.0,0.00021988,2]
[319453699,1710781848905,-500.0,0.00021988,2]
[319453700,1710781848914,-1056.54793275,0.00021988,2]
[319453701,1710781848923,-2234.28,0.00021988,2]
[319453702,1710781848932,-1074.6,0.00021988,2]
[319453703,1710781848941,-500.0,0.00021988,2]
[319453704,1710781848950,-587.05,0.00021988,2]
[319453705,1710781848959,-537.27,0.00021988,2]
[319453706,1710781848968,-985.07,0.00021988,2]
[319453707,1710781848977,-569.97,0.00021988,2]
[319453708,1710781848986,-3389.4,0.00021988,2]
[319453709,1710781848994,-4213.44,0.00021988,2]
[319453710,1710781849003,-1659.17,0.00021988,2]
[319453711,1710781849014,-4182.46,0.00021988,2]
[319453712,1710781849024,-500.0,0.00021988,2]
[319453713,1710781849034,-541.82,0.00021988,2]
[319453714,1710781849043,-619.46,0.00021988,2]
[319453715,1710781849053,-500.0,0.00021988,2]
[319453716,1710781849063,-500.0,0.00021988,2]
[319453717,1710781849072,-500.0,0.00021988,2]
[319453718,1710781849081,-3069.55,0.00021988,2]
[319453719,1710781849093,-1026.81,0.00021988,2]
[319453720,1710781849102,-3315.68,0.00021988,2]
[319453721,1710781849110,-500.0,0.00021988,2]
[319453722,1710781849119,-4584.29,0.00021988,2]
[319453723,1710781849128,-500.0,0.00021988,2]
[319453724,1710781849137,-500.0,0.00021988,2]
[319453725,1710781849146,-524.78962374,0.00021988,2]
[319453726,1710781849156,-822.74,0.00021988,2]
[319453727,1710781849165,-500.0,0.00021988,2]
[319453728,1710781849174,-723.58,0.00021988,2]
[319453729,1710781849184,-473.73375047,0.00021988,2]
[319453730,1710781849193,-952.5,0.00021988,2]
[319453731,1710781849203,-500.0,0.00021988,2]
[319453732,1710781849213,-564.23284238,0.00021988,2]
[319453733,1710781849222,-500.0,0.00021988,2]
[319453734,1710781849232,-500.0,0.00021988,2]
[319453735,1710781849242,-585.11,0.00021988,2]
[319453736,1710781849252,-601.95,0.00021988,2]
[319453737,1710781849261,-841.78,0.00021988,2]
[319453738,1710781849271,-1335.83,0.00021988,2]
[319453739,1710781849280,-2074.48393643,0.00021989,2]
[319453740,1710781849290,-500.0,0.00021989,2]
[319453741,1710781849299,-500.0,0.00021989,2]
[319453742,1710781849309,-503.72787791,0.00021989,2]
[319453743,1710781849319,-500.0,0.00021989,2]
[319453744,1710781849332,-500.0,0.00021989,2]
[319453745,1710781849343,-717.67,0.00021989,2]
[319453746,1710781849353,-500.0,0.00021989,2]
[319453747,1710781849363,-500.0,0.00021989,2]
[319453748,1710781849374,-2487.05,0.00021989,2]
[319453749,1710781849383,-500.0,0.00021989,2]
[319453750,1710781849393,-501.97481078,0.00021989,2]
[319453751,1710781849402,-500.0,0.00021989,2]
[319453752,1710781849411,-500.0,0.00021989,2]
[319453753,1710781849422,-500.0,0.00021989,2]
[319453754,1710781849432,-661.6,0.00021989,2]
[319453755,1710781849441,-760.18,0.00021989,2]
[319453756,1710781849451,-1753.79,0.00021989,2]
[319453757,1710781849459,-500.0,0.00021989,2]
[319453758,1710781849469,-1082.47,0.00021989,2]
[319453759,1710781849478,-2208.24,0.00021989,2]
[319453760,1710781849486,-500.0,0.00021989,2]
[319453761,1710781849495,-500.0,0.00021989,2]
[319453762,1710781849504,-506.37,0.00021989,2]
[319453763,1710781849513,-500.0,0.00021989,2]
[319453764,1710781849522,-500.0,0.00021989,2]
[319453765,1710781849532,-500.0,0.00021989,2]
[319453766,1710781849541,-807.47,0.00021989,2]
[319453767,1710781849550,-500.0,0.00021989,2]
[319453768,1710781849559,-695.54,0.00021989,2]
[319453769,1710781849568,-502.74764149,0.00021989,2]
[319453770,1710781849578,-500.0,0.00021989,2]
[319453771,1710781849587,-500.0,0.00021989,2]
[319453772,1710781849602,-500.0,0.00021989,2]
[319453773,1710781849611,-500.0,0.00021989,2]
[319453774,1710781849621,-500.30450001,0.00021989,2]
[319453775,1710781849630,-500.0,0.00021989,2]
[319453776,1710781849639,-500.0,0.00021989,2]
[319453777,1710781849650,-1492.06,0.00021989,2]
[319453778,1710781849659,-924.36,0.00021989,2]
[319453779,1710781849668,-758.7,0.00021989,2]
[319453780,1710781849678,-500.0,0.00021989,2]
[319453781,1710781849687,-572.13633298,0.00021989,2]
[319453782,1710781849696,-281.90780858,0.00021989,2]
[319453783,1710781849705,-1367.64,0.00021989,2]
[319453784,1710781849714,-500.0,0.00021989,2]
[319453785,1710781849723,-500.0,0.00021989,2]
[319453786,1710781849732,-500.0,0.00021989,2]
[319453787,1710781849741,-500.0,0.00021989,2]
[319453788,1710781849751,-998.14,0.00021989,2]
[319453789,1710781849760,-1061.17,0.00021989,2]
[319453790,1710781849769,-500.0,0.00021989,2]
[319453791,1710781849779,-824.91,0.00021989,2]
[319453792,1710781849788,-500.0,0.00021989,2]
[319453793,1710781849797,-500.0,0.00021989,2]
[319453794,1710781849807,-500.0,0.00021989,2]
[319453795,1710781849817,-1557.7,0.00021989,2]
[319453796,1710781849826,-3996.22,0.00021989,2]
[319453797,1710781849835,-500.0,0.00021989,2]
[319453798,1710781849847,-537.95,0.00021989,2]
[319453799,1710781849857,-854.17,0.00021989,2]
[319453800,1710781849866,-559.1,0.00021989,2]
[319453801,1710781850059,-500.0,0.00021989,2]
[319453802,1710781850070,-1987.09,0.00021989,2]
[319453803,1710781850082,-500.0,0.00021989,2]
[319453804,1710781850096,-500.0,0.00021989,2]
[319453805,1710781850107,-861.54,0.00021989,2]
[319453806,1710781850118,-500.0,0.00021989,2]
[319453807,1710781850128,-1737.16,0.00021989,2]
[319453808,1710781850138,-500.0,0.00021989,2]
[319453809,1710781850147,-993.05,0.00021989,2]
[319453810,1710781850158,-1554.42,0.00021989,2]
[319453811,1710781850169,-500.0,0.00021989,2]
[319453812,1710781850179,-660.55,0.00021989,2]
[319453813,1710781850190,-815.39,0.00021989,2]
[319453814,1710781850200,-563.4,0.00021989,2]
[319453815,1710781850210,-500.0,0.00021989,2]
[319453816,1710781850221,-500.0,0.00021989,2]
[319453817,1710781850231,-500.0,0.00021989,2]
[319453818,1710781850241,-588.98,0.00021989,2]
[319453819,1710781850251,-500.0,0.00021989,2]
[319453820,1710781850260,-500.0,0.00021989,2]
[319453821,1710781850270,-500.0,0.00021989,2]
[319453822,1710781850281,-852.01,0.00021989,2]
[319453823,1710781850291,-470.22835446,0.00021989,2]
[319453824,1710781850302,-1136.79,0.00021989,2]
[319453825,1710781850313,-500.0,0.00021989,2]
[319453826,1710781850325,-1989.59,0.00021989,2]
[319453827,1710781850339,-510.05,0.00021989,2]
[319453828,1710781850358,-632.08,0.00021989,2]
[319453829,1710781850370,-500.0,0.00021989,2]
[319453830,1710781850381,-500.0,0.00021989,2]
[319453831,1710781850391,-500.0,0.00021989,2]
[319453832,1710781850400,-500.0,0.00021989,2]
[319453833,1710781850412,-500.0,0.00021989,2]
[319453834,1710781850421,-500.0,0.00021989,2]
[319453835,1710781850430,-500.0,0.00021989,2]
[319453836,1710781850440,-500.0,0.00021989,2]
[319453837,1710781850450,-500.0,0.00021989,2]
[319453838,1710781850460,-500.0,0.00021989,2]
[319453839,1710781850470,-500.0,0.00021989,2]
[319453840,1710781850479,-500.0,0.00021989,2]
[319453841,1710781850488,-845.4,0.00021989,2]
[319453842,1710781850498,-501.77412284,0.00021989,2]
[319453843,1710781850508,-500.0,0.00021989,2]
[319453844,1710781850518,-500.0,0.00021989,2]
[319453845,1710781850527,-500.0,0.00021989,2]
[319453846,1710781850538,-647.83,0.00021989,2]
[319453847,1710781850548,-1343.32,0.00021989,2]
[319453848,1710781850558,-500.0,0.00021989,2]
[319453849,1710781850568,-500.0,0.00021989,2]
[319453850,1710781850577,-500.0,0.00021989,2]
[319453851,1710781850587,-500.0,0.00021989,2]
[319453852,1710781850604,-500.0,0.00021989,2]
[319453853,1710781850614,-2330.5,0.00021989,2]
[319453854,1710781850626,-500.0,0.00021989,2]
[319453855,1710781850636,-500.0,0.00021989,2]
[319453856,1710781850647,-500.0,0.00021989,2]
[319453857,1710781850658,-500.0,0.00021989,2]
[319453858,1710781850672,-1522.54,0.00021989,2]
[319453859,1710781850683,-500.0,0.00021989,2]
[319453860,1710781850693,-2515.66,0.00021989,2]
[319453861,1710781850704,-500.0,0.00021989,2]
[319453862,1710781850714,-1538.91,0.00021989,2]
[319453863,1710781850724,-500.0,0.00021989,2]
[319453864,1710781850734,-1495.78,0.00021989,2]
[319453865,1710781850743,-500.0,0.00021989,2]
[319453866,1710781850752,-500.0,0.00021989,2]
[319453867,1710781850761,-500.0,0.00021989,2]
[319453868,1710781850772,-836.83,0.00021989,2]
[319453869,1710781850781,-2759.3,0.00021989,2]
[319453870,1710781850790,-500.0,0.00021989,2]
[319453871,1710781850800,-500.0,0.00021989,2]
[319453872,1710781850809,-632.5,0.00021989,2]
[319453873,1710781850818,-500.0,0.00021989,2]
[319453874,1710781850827,-500.0,0.00021989,2]
[319453875,1710781850836,-501.67704481,0.00021989,2]
[319453876,1710781850850,-702.95,0.00021989,2]
[319453877,1710781850859,-500.0,0.00021989,2]
[319453878,1710781850870,-500.0,0.00021989,2]
[319453879,1710781850879,-3035.68,0.00021989,2]
[319453880,1710781850889,-500.0,0.00021989,2]
[319453881,1710781850898,-632.75,0.00021989,2]
[319453882,1710781850907,-500.43876034,0.00021989,2]
[319453883,1710781850916,-708.43,0.00021989,2]
[319453884,1710781850925,-500.0,0.00021989,2]
[319453885,1710781850935,-561.80120808,0.00021989,2]
[319453886,1710781850944,-500.0,0.00021989,2]
[319453887,1710781850953,-502.47200117,0.00021989,2]
[319453888,1710781850962,-1053.54,0.00021989,2]
[319453889,1710781850972,-500.0,0.00021989,2]
[319453890,1710781850982,-500.55569031,0.00021989,2]
[319453891,1710781850992,-301.00085258,0.00021989,2]
[319453892,1710781851002,-646.9,0.00021989,2]
[319453893,1710781851012,-500.0,0.00021989,2]
[319453894,1710781851022,-2386.94,0.00021989,2]
[319453895,1710781851031,-619.81615139,0.00021989,2]
[319453896,1710781851041,-2422.19,0.00021989,2]
[319453897,1710781851051,-500.0,0.00021989,2]
[319453898,1710781851060,-943.65,0.00021989,2]
[319453899,1710781851069,-500.0,0.00021989,2]
[319453900,1710781851078,-500.0,0.00021989,2]
[319453901,1710781851088,-1088.26,0.00021989,2]
[319453902,1710781851101,-500.0,0.00021989,2]
[319453903,1710781851111,-1017.87,0.00021989,2]
[319453904,1710781851121,-500.0,0.00021989,2]
[319453905,1710781851131,-2032.51,0.00021989,2]
[319453906,1710781851140,-1329.06,0.00021989,2]
[319453907,1710781851150,-500.0,0.00021989,2]
[319453908,1710781851159,-500.0,0.00021989,2]
[319453909,1710781851169,-500.0,0.00021989,2]
[319453910,1710781851178,-500.0,0.00021989,2]
[319453911,1710781851188,-500.0,0.00021989,2]
[319453912,1710781851198,-500.0,0.00021989,2]
[319453913,1710781851207,-583.61,0.00021989,2]
[319453914,1710781851217,-500.0,0.00021989,2]
[319453915,1710781851240,-500.0,0.00021989,2]
[319453916,1710781851260,-500.0,0.00021989,2]
[319453917,1710781851279,-628.46203422,0.00021989,2]
[319453918,1710781851299,-1256.43,0.00021989,2]
[319453919,1710781851316,-500.0,0.00021989,2]
[319453920,1710781851335,-557.77,0.00021989,2]
[319453921,1710781851355,-500.0,0.00021989,2]
[319453922,1710781851377,-500.0,0.00021989,2]
[319453923,1710781851397,-500.0,0.00021989,2]
[319453924,1710781851414,-500.0,0.00021989,2]
[319453925,1710781851433,-580.54,0.00021989,2]
[319453926,1710781851454,-892.46,0.00021989,2]
[319453927,1710781851467,-500.0,0.00021989,2]
[319453928,1710781851484,-500.52589069,0.00021989,2]
[319453929,1710781851502,-500.0,0.00021989,2]
[319453930,1710781851517,-500.0,0.00021989,2]
[319453931,1710781851533,-500.0,0.00021989,2]
[319453932,1710781851548,-500.0,0.00021989,2]
[319453933,1710781851564,-500.0,0.00021989,2]
[319453934,1710781851581,-500.0,0.00021989,2]
[319453935,1710781851597,-741.29,0.00021989,2]
[319453936,1710781851616,-500.0,0.00021989,2]
[319453937,1710781851631,-500.0,0.00021989,2]
[319453938,1710781851647,-2433.25,0.00021989,2]
[319453939,1710781851664,-500.0,0.00021989,2]
[319453940,1710781851679,-500.0,0.00021989,2]
[319453941,1710781851695,-500.0,0.00021989,2]
[319453942,1710781851717,-1176.54,0.00021989,2]
[319453943,1710781851732,-500.0,0.00021989,2]
[319453944,1710781851749,-500.0,0.00021989,2]
[319453945,1710781851765,-500.66748025,0.00021989,2]
[319453946,1710781851782,-566.87,0.00021989,2]
[319453947,1710781851798,-1680.7,0.00021989,2]
[319453948,1710781851815,-500.0,0.00021989,2]
[319453949,1710781851830,-1201.27,0.00021989,2]
[319453950,1710781851847,-500.0,0.00021989,2]
[319453951,1710781851865,-674.7,0.00021989,2]
[319453952,1710781851881,-985.69,0.00021989,2]
[319453953,1710781851897,-500.0,0.00021989,2]
[319453954,1710781851913,-500.0,0.00021989,2]
[319453955,1710781851928,-659.79,0.00021989,2]
[319453956,1710781851943,-500.0,0.00021989,2]
[319453957,1710781851958,-500.0,0.00021989,2]
[319453958,1710781851972,-500.0,0.00021989,2]
[319453959,1710781851987,-500.0,0.00021989,2]
[319453960,1710781852002,-300.0,0.00021989,2]
[319453961,1710781852018,-500.0,0.00021989,2]
[319453962,1710781852032,-500.0,0.00021989,2]
[319453963,1710781852047,-500.0,0.00021989,2]
[319453964,1710781852062,-846.18,0.00021989,2]
[319453965,1710781852077,-500.0,0.00021989,2]
[319453966,1710781852092,-500.0,0.00021989,2]
[319453967,1710781852109,-500.0,0.00021989,2]
[319453968,1710781852134,-1203.31,0.00021989,2]
[319453969,1710781852155,-599.93,0.00021989,2]
[319453970,1710781852175,-500.0,0.00021989,2]
[319453971,1710781852195,-500.0,0.00021989,2]
[319453972,1710781852214,-500.0,0.00021989,2]
[319453973,1710781852233,-1052.17,0.00021989,2]
[319453974,1710781852250,-500.0,0.00021989,2]
[319453975,1710781852267,-500.0,0.00021989,2]
[319453976,1710781852285,-500.0,0.00021989,2]
[319453977,1710781852304,-500.0,0.00021989,2]
[319453978,1710781852320,-500.0,0.00021989,2]
[319453979,1710781852338,-500.0,0.00021989,2]
[319453980,1710781852359,-541.61,0.00021989,2]
[319453981,1710781852376,-500.0,0.00021989,2]
[319453982,1710781852392,-1042.24,0.00021989,2]
[319453983,1710781852408,-1013.56,0.00021989,2]
[319453984,1710781852424,-500.0,0.00021989,2]
[319453985,1710781852441,-923.01,0.00021989,2]
[319453986,1710781852458,-500.0,0.00021989,2]
[319453987,1710781852473,-500.0,0.00021989,2]
[319453988,1710781852489,-500.0,0.00021989,2]
[319453989,1710781852504,-802.87,0.00021989,2]
[319453990,1710781852519,-1722.67,0.00021989,2]
[319453991,1710781852534,-2653.3,0.00021989,2]
[319453992,1710781852549,-500.0,0.00021989,2]
[319453993,1710781852564,-500.0,0.00021989,2]
[319453994,1710781852579,-500.0,0.00021989,2]
[319453995,1710781852594,-500.0,0.00021989,2]
[319453996,1710781852617,-500.0,0.00021989,2]
[319453997,1710781852636,-500.0,0.00021989,2]
[319453998,1710781852656,-500.0,0.00021989,2]
[319453999,1710781852673,-935.12,0.00021989,2]
[319454000,1710781852691,-1259.25,0.00021989,2]
[319454001,1710781852708,-500.0,0.00021989,2]
[319454002,1710781852725,-1413.67,0.00021989,2]
[319454003,1710781852741,-1281.75,0.00021989,2]
[319454004,1710781852757,-500.0,0.00021989,2]
[319454005,1710781852772,-500.0,0.00021989,2]
[319454006,1710781852788,-500.0,0.00021989,2]
[319454007,1710781852804,-500.0,0.00021989,2]
[319454008,1710781852819,-979.33,0.00021989,2]
[319454009,1710781852834,-500.0,0.00021989,2]
[319454010,1710781852849,-631.92,0.00021989,2]
[319454011,1710781852864,-500.0,0.00021989,2]
[319454012,1710781852879,-500.0,0.00021989,2]
[319454013,1710781852895,-500.0,0.00021989,2]
[319454014,1710781852910,-500.00688142,0.00021989,2]
[319454015,1710781852925,-500.0,0.00021989,2]
[319454016,1710781852940,-525.51,0.00021989,2]
[319454017,1710781852954,-689.14,0.00021989,2]
[319454018,1710781852969,-500.0,0.00021989,2]
[319454019,1710781852983,-500.0,0.00021989,2]
[319454020,1710781852997,-500.0,0.00021989,2]
[319454021,1710781853013,-500.0,0.00021989,2]
[319454022,1710781853027,-500.0,0.00021989,2]
[319454023,1710781853038,-502.32192855,0.00021989,2]
[319454024,1710781853047,-500.0,0.00021989,2]
[319454025,1710781853056,-500.0,0.00021989,2]
[319454026,1710781853065,-1232.91,0.00021989,2]
[319454027,1710781853074,-500.0,0.00021989,2]
[319454028,1710781853088,-685.35,0.00021989,2]
[319454029,1710781853100,-500.0,0.00021989,2]
[319454030,1710781853420,-535.81,0.00021989,2]
[319454031,1710781853459,-500.0,0.00021989,2]
[319454032,1710781853472,-500.0,0.00021989,2]